lending/lending_fUSD_20251111
["ID","MTS","AMOUNT","RATE_DAILY","PERIOD"]
[393629585,1762866644241,-151.0,0.00039945,120]
[393629586,1762866644250,-151.0,0.00039945,120]
[393629587,1762866644260,-151.0,0.00039945,120]
[393629588,1762866644269,-151.0,0.00039945,120]
[393629589,1762866644278,-151.0,0.00039945,120]
[393629590,1762866644287,-164.4422,0.00039945,120]
[393629591,1762866644297,-151.0,0.00039945,120]
[393629592,1762866644306,-266.888997,0.00039945,120]
[393629593,1762866644316,-151.0,0.00039945,120]
[393629594,1762866644325,-151.0,0.00039945,120]
[393629595,1762866644334,-151.0,0.00039945,120]
[393629596,1762866644344,-151.0,0.00039945,120]
[393629597,1762866644353,-151.0,0.00039945,120]
[393629598,1762866644362,-151.0,0.00039945,120]
[393629599,1762866644371,-151.0,0.00039945,120]
[393629600,1762866644380,-151.0,0.00039945,120]
[393629601,1762866644390,-181.584598,0.00039945,120]
[393629602,1762866644399,-151.0,0.00039945,120]
[393629603,1762866644408,-151.0,0.00039945,120]
[393629604,1762866644417,-151.0,0.00039945,120]
[393629605,1762866644426,-151.0,0.00039945,120]
[393629606,1762866644435,-151.0,0.00039945,120]
[393629607,1762866644445,-151.0,0.00039945,120]
[393629608,1762866644455,-151.0,0.00039945,120]
[393629609,1762866644464,-151.0,0.00039945,120]
[393629610,1762866644473,-278.773605,0.00039945,120]
[393629611,1762866644482,-230.64018831,0.00039945,120]
[393629612,1762866644491,-151.0,0.00039945,120]
[393629613,1762866644500,-151.0,0.00039945,120]
[393629614,1762866644510,-151.0,0.00039945,120]
[393629615,1762866644520,-151.0,0.00039945,120]
[393629616,1762866644529,-151.0,0.00039945,120]
[393629617,1762866644538,-151.0,0.00039945,120]
[393629618,1762866644547,-151.0,0.00039945,120]
[393629619,1762866644556,-151.0,0.00039945,120]
[393629620,1762866644565,-151.0,0.00039945,120]
[393629621,1762866644574,-151.0,0.00039945,120]
[393629622,1762866644583,-151.0,0.00039945,120]
[393629623,1762866644592,-151.0,0.00039945,120]
[393629624,1762866644601,-151.0,0.00039945,120]
[393629625,1762866644610,-151.0,0.00039945,120]
[393629626,1762866644619,-151.0,0.00039945,120]
[393629627,1762866644628,-151.0,0.00039945,120]
[393629628,1762866644638,-151.0,0.00039945,120]
[393629629,1762866644647,-151.0,0.00039945,120]
[393629630,1762866644656,-151.0,0.00039945,120]
[393629631,1762866644665,-151.0,0.00039945,120]
[393629632,1762866644675,-292.141505,0.00039945,120]
[393629633,1762866644685,-151.616994,0.00039945,120]
[393629634,1762866644695,-151.0,0.00039945,120]
[393629635,1762866644704,-151.0,0.00039945,120]
[393629636,1762866644714,-151.0,0.00039945,120]
[393629637,1762866644724,-151.0,0.00039945,120]
[393629638,1762866644734,-164.322279,0.00039945,120]
[393629639,1762866644743,-151.0,0.00039945,120]
[393629640,1762866644753,-151.0,0.00039945,120]
[393629641,1762866644763,-151.0,0.00039945,120]
[393629642,1762866644772,-151.0,0.00039945,120]
[393629643,1762866644782,-151.0,0.00039945,120]
[393629644,1762866644792,-177.07649,0.00039945,120]
[393629645,1762866644801,-151.0,0.00039945,120]
[393629646,1762866644810,-153.202601,0.00039945,120]
[393629647,1762866644820,-151.0,0.00039945,120]
[393629648,1762866644987,-151.0,0.00039945,120]
[393629649,1762866644997,-151.0,0.00039945,120]
[393629650,1762866645007,-151.0,0.00039945,120]
[393629651,1762866645017,-151.0,0.00039945,120]
[393629652,1762866645026,-151.0,0.00039945,120]
[393629653,1762866645037,-151.0,0.00039945,120]
[393629654,1762866645051,-151.0,0.00039945,120]
[393629655,1762866645060,-151.0,0.00039945,120]
[393629656,1762866645070,-151.0,0.00039945,120]
[393629657,1762866645080,-151.0,0.00039945,120]
[393629658,1762866645090,-151.0,0.00039945,120]
[393629659,1762866645100,-151.0,0.00039945,120]
[393629660,1762866645110,-151.0,0.00039945,120]
[393629661,1762866645122,-151.0,0.00039945,120]
[393629662,1762866645131,-153.636176,0.00039945,120]
[393629663,1762866645141,-268.252098,0.00039945,120]
[393629664,1762866645151,-152.333962,0.00039945,120]
[393629665,1762866645160,-151.0,0.00039945,120]
[393629666,1762866645170,-151.0,0.00039945,120]
[393629667,1762866645180,-233.764415,0.00039945,120]
[393629668,1762866645190,-151.0,0.00039945,120]
[393629669,1762866645200,-151.0,0.00039945,120]
[393629670,1762866645209,-151.0,0.00039945,120]
[393629671,1762866645219,-151.0,0.00039945,120]
[393629672,1762866645229,-151.0,0.00039945,120]
[393629673,1762866645238,-151.0,0.00039945,120]
[393629674,1762866645248,-151.0,0.00039945,120]
[393629675,1762866645259,-151.0,0.00039945,120]
[393629676,1762866645268,-151.0,0.00039945,120]
[393629677,1762866645278,-151.0,0.00039945,120]
[393629678,1762866645287,-188.906772,0.00039945,120]
[393629679,1762866645296,-221.868087,0.00039945,95]
[393629680,1762866645306,-151.0,0.00039945,120]
[393629681,1762866645315,-153.658686,0.00039945,120]
[393629682,1762866645325,-151.0,0.00039945,120]
[393629683,1762866645335,-152.034756,0.00039945,120]
[393629684,1762866645344,-151.89687,0.00039945,30]
[393629685,1762866645353,-151.0,0.00039945,120]
[393629686,1762866645363,-151.0,0.00039945,120]
[393629687,1762866645372,-301.390707,0.00039945,120]
[393629688,1762866645383,-151.0,0.00039945,120]
[393629689,1762866645393,-151.0,0.00039945,120]
[393629690,1762866645403,-151.0,0.00039945,120]
[393629691,1762866645412,-151.0,0.00039945,120]
[393629692,1762866645423,-151.0,0.00039945,120]
[393629693,1762866645433,-151.0,0.00039945,120]
[393629694,1762866645443,-151.0,0.00039945,120]
[393629695,1762866645453,-151.0,0.00039945,120]
[393629696,1762866645464,-151.0,0.00039945,120]
[393629697,1762866645475,-197.607369,0.00039945,120]
[393629698,1762866645485,-151.0,0.00039945,120]
[393629699,1762866645494,-151.0,0.00039945,120]
[393629700,1762866645504,-151.0,0.00039945,120]
[393629701,1762866645513,-151.0,0.00039945,120]
[393629702,1762866645522,-248.936476,0.00039945,120]
[393629703,1762866645531,-151.0,0.00039945,120]
[393629704,1762866645541,-3398363.14336174,0.00039945,7]
[393629705,1762866645550,-13035.25298853,0.00039945,20]
[393629706,1762866645559,-778326.6087515,0.00039945,7]
[393629707,1762866645679,-5860.0317327,0.00039945,7]
[393629708,1762866645724,-221277.03935729,0.00039945,7]
[393629709,1762866645735,-100090.02,0.00039945,7]
[393629710,1762866645746,-533326.15118084,0.00039945,7]
[393629711,1762866645755,-172772.77125361,0.00039945,7]
[393629719,1762866646516,-5232.0,0.00037128,30]
[393629720,1762866646950,-15111.69689906,0.00037128,30]
[393629721,1762866646959,-330124.81543951,0.00039945,7]
[393629722,1762866962699,274.09,0.00022,30]
[393629727,1762867058181,250.0,0.000155,2]
[393629731,1762867206345,-219.11577884,0.00039956,120]
[393629732,1762867206372,-245.88471285,0.00039956,120]
[393629733,1762867206397,-159.94874886,0.00039956,120]
[393629734,1762867206422,-204.50273828,0.00039956,120]
[393629735,1762867206447,-174.47061694,0.00039956,120]
[393629736,1762867206472,-310.15649645,0.00039956,120]
[393629737,1762867206497,-170.14206759,0.00039956,120]
[393629738,1762867206523,-180.37391705,0.00039956,120]
[393629739,1762867206548,-500.0,0.00039956,120]
[393629740,1762867206573,-201.57466176,0.00039956,120]
[393629741,1762867206597,-256.62379447,0.00039956,120]
[393629742,1762867206622,-364.19796383,0.00039956,120]
[393629743,1762867206647,-513.60305437,0.00039956,120]
[393629744,1762867206673,-159.47974888,0.00039956,120]
[393629745,1762867206698,-182.88403196,0.00039956,120]
[393629746,1762867206724,-500.0,0.00039956,120]
[393629747,1762867206751,-500.0,0.00039956,120]
[393629748,1762867206776,-328.31116499,0.00039956,120]
[393629749,1762867206800,-228.7863609,0.00039956,120]
[393629750,1762867206824,-292.36304035,0.00039956,120]
[393629751,1762867206851,-298.98810944,0.00039956,120]
[393629752,1762867206878,-500.0,0.00039956,120]
[393629753,1762867206907,-398.690062,0.00039956,120]
[393629754,1762867206932,-214.12735256,0.00039956,30]
[393629755,1762867206955,-183.02845097,0.00039956,120]
[393629756,1762867206978,-159.13652812,0.00039956,120]
[393629757,1762867207004,-647.63224286,0.00039956,120]
[393629758,1762867207028,-181.84197302,0.00039956,120]
[393629759,1762867207052,-367.0531293,0.00039956,120]
[393629760,1762867207076,-157.27636506,0.00039956,120]
[393629761,1762867207101,-155.92673057,0.00039956,120]
[393629762,1762867207125,-150.47403167,0.00039956,120]
[393629763,1762867207151,-638.04476487,0.00039956,120]
[393629764,1762867207176,-204.57156803,0.00039956,120]
[393629765,1762867207205,-239.11556276,0.00039956,120]
[393629766,1762867207231,-316.04958422,0.00039956,120]
[393629767,1762867207257,-164.33865353,0.00039956,120]
[393629768,1762867207283,-263.22546405,0.00039956,120]
[393629769,1762867207307,-366.31677455,0.00039956,120]
[393629770,1762867207332,-243.41920423,0.00039956,120]
[393629771,1762867207356,-483.06831784,0.00039956,120]
[393629772,1762867207381,-500.0,0.00039956,120]
[393629773,1762867207405,-176.52703017,0.00039956,120]
[393629774,1762867207430,-208.46536247,0.00039956,120]
[393629775,1762867207455,-215.2723471,0.00039956,120]
[393629776,1762867207480,-158.93388875,0.00039956,120]
[393629777,1762867207506,-191.43960458,0.00039956,120]
[393629778,1762867207539,-338.33241856,0.00039956,120]
[393629779,1762867207574,-496.16782844,0.00039956,120]
[393629780,1762867207602,-174.02218984,0.00039956,120]
[393629781,1762867207633,-161.40927422,0.00039956,120]
[393629782,1762867207663,-339.45418503,0.00039956,120]
[393629783,1762867207696,-177.06897565,0.00039956,120]
[393629784,1762867207727,-190.42666299,0.00039956,120]
[393629785,1762867207757,-171.32945975,0.00039956,60]
[393629786,1762867207784,-872.15965964,0.00039956,120]
[393629787,1762867207815,-151.75612317,0.00039956,120]
[393629788,1762867207845,-168.3468244,0.00039956,60]
[393629789,1762867207876,-155.14026033,0.00039956,120]
[393629790,1762867207906,-964.35360558,0.00039956,120]
[393629791,1762867207936,-172.00641158,0.00039956,120]
[393629792,1762867207965,-174.48185762,0.00039956,120]
[393629793,1762867208003,-206.68340799,0.00039956,120]
[393629794,1762867208034,-157.66338692,0.00039956,120]
[393629795,1762867208064,-150.0,0.00039956,30]
[393629796,1762867208095,-215.8,0.00039956,30]
[393629797,1762867208126,-367.0,0.00039956,120]
[393629798,1762867208165,-184.0,0.00039956,120]
[393629799,1762867208199,-25108.0,0.00039956,30]
[393629800,1762867208227,-500.0,0.00039956,120]
[393629801,1762867208256,-500.0,0.00039956,120]
[393629802,1762867208285,-500.0,0.00039956,120]
[393629803,1762867208318,-500.0,0.00039956,120]
[393629804,1762867208345,-500.0,0.00039956,120]
[393629805,1762867208371,-239.10151391,0.00039956,120]
[393629806,1762867208400,-5000.0,0.00039956,30]
[393629807,1762867208430,-500.0,0.00039956,120]
[393629808,1762867208458,-500.0,0.00039956,120]
[393629809,1762867208485,-500.0,0.00039956,120]
[393629810,1762867208513,-498.6504868,0.00039956,120]
[393629811,1762867208542,-187.66993798,0.00039956,120]
[393629812,1762867208575,-768.66736507,0.00039956,90]
[393629813,1762867208604,-161.18115152,0.00039956,60]
[393629814,1762867208633,-175.40769083,0.00039956,60]
[393629815,1762867208666,-159.76526708,0.00039956,120]
[393629816,1762867208694,-1606.15514198,0.00039956,120]
[393629817,1762867208722,-173.45349107,0.00039956,120]
[393629818,1762867208750,-155.5321441,0.00039956,30]
[393629819,1762867208778,-163.58444431,0.00039956,30]
[393629820,1762867208806,-845.95805954,0.00039956,120]
[393629821,1762867208834,-245.90909049,0.00039956,120]
[393629822,1762867208862,-196.35274324,0.00039956,30]
[393629823,1762867208895,-155.47397273,0.00039956,120]
[393629824,1762867208923,-267.77242585,0.00039956,120]
[393629825,1762867208952,-465.04610961,0.00039956,120]
[393629826,1762867208979,-519.47148302,0.00039956,120]
[393629827,1762867209008,-508.14376047,0.00039956,120]
[393629828,1762867209037,-4000.0,0.00039956,120]
[393629829,1762867209066,-500.0,0.00039956,120]
[393629830,1762867209094,-500.0,0.00039956,120]
[393629831,1762867209123,-514.24225291,0.00039956,120]
[393629832,1762867209152,-3392.90469827,0.00039956,120]
[393629833,1762867209183,-500.0,0.00039956,120]
[393629834,1762867209211,-500.0,0.00039956,120]
[393629835,1762867209243,-500.0,0.00039956,120]
[393629836,1762867209273,-503.73944626,0.00039956,120]
[393629837,1762867209302,-285.86545746,0.00039956,120]
[393629838,1762867209329,-500.0,0.00039956,120]
[393629839,1762867209355,-500.0,0.00039956,120]
[393629840,1762867209381,-500.0,0.00039956,120]
[393629841,1762867209405,-500.0,0.00039956,120]
[393629842,1762867209430,-500.0,0.00039956,120]
[393629843,1762867209455,-500.0,0.00039956,120]
[393629844,1762867209479,-500.0,0.00039956,120]
[393629845,1762867209725,-500.0,0.00039956,120]
[393629846,1762867209765,-214.88642371,0.00039956,120]
[393629847,1762867209790,-15737.23107484,0.00039956,120]
[393629848,1762867209815,-80307.0,0.00039956,30]
[393629849,1762867209840,-10697.2,0.00039956,30]
[393629850,1762867209864,-1626976.52372398,0.00039956,30]
[393629851,1762867209891,-500000.0,0.00039956,45]
[393629852,1762867209916,-500000.0,0.00039956,60]
[393629853,1762867209941,-683.47259048,0.00039956,120]
[393629854,1762867209966,-100425.0,0.00039956,30]
[393629855,1762867209991,-296601.6255,0.00039956,30]
[393629856,1762867210017,-1792096.02801969,0.00039956,60]
[393629996,1762867221897,-2133070.27198031,0.00039956,60]
[393629997,1762867221921,-705.37109943,0.00039956,120]
[393629999,1762867221945,-500.0,0.00039956,120]
[393630000,1762867221969,-500.0,0.00039956,120]
[393630002,1762867221993,-500.0,0.00039956,120]
[393630003,1762867222018,-500.0,0.00039956,120]
[393630005,1762867222041,-500.0,0.00039956,120]
[393630006,1762867222065,-498.37297979,0.00039956,120]
[393630008,1762867222089,-8350.0,0.00039956,120]
[393630009,1762867222114,-35000.0,0.00039956,30]
[393630011,1762867222137,-500.0,0.00039956,120]
[393630012,1762867222160,-500.0,0.00039956,120]
[393630014,1762867222187,-500.0,0.00039956,120]
[393630015,1762867222212,-500.0,0.00039956,120]
[393630017,1762867222237,-500.0,0.00039956,120]
[393630018,1762867222261,-500.0,0.00039956,120]
[393630020,1762867222285,-500.0,0.00039956,120]
[393630021,1762867222309,-500.0,0.00039956,120]
[393630023,1762867222332,-500.0,0.00039956,120]
[393630024,1762867222356,-500.0,0.00039956,120]
[393630025,1762867222380,-500.0,0.00039956,120]
[393630027,1762867222404,-500.0,0.00039956,120]
[393630028,1762867222427,-500.0,0.00039956,120]
[393630030,1762867222450,-183.50472191,0.00039956,120]
[393630032,1762867222473,-500.0,0.00039956,120]
[393630033,1762867222497,-176.19472212,0.00039956,120]
[393630035,1762867222521,-4289.05695599,0.00039956,55]
[393630036,1762867222547,-9554.0,0.00039956,30]
[393630038,1762867222571,-10331.31624633,0.00039956,45]
[393630039,1762867222595,-1328.91810946,0.00039956,120]
[393630040,1762867222619,-1032.5134031,0.00039956,120]
[393630042,1762867222644,-52557.76028686,0.00039956,120]
[393630044,1762867222671,-356.09970755,0.00039956,120]
[393630045,1762867222696,-500.0,0.00039956,120]
[393630046,1762867222720,-500.0,0.00039956,120]
[393630047,1762867222746,-500.0,0.00039956,120]
[393630048,1762867222771,-500.0,0.00039956,120]
[393630049,1762867222795,-500.0,0.00039956,120]
[393630050,1762867222818,-500.0,0.00039956,120]
[393630051,1762867222842,-172.81919221,0.00039956,120]
[393630052,1762867222868,-832.41,0.00039956,120]
[393630053,1762867222894,-832.41,0.00039956,120]
[393630054,1762867222918,-832.41,0.00039956,120]
[393630055,1762867222943,-832.41,0.00039956,120]
[393630056,1762867222967,-832.41,0.00039956,120]
[393630057,1762867222990,-832.41,0.00039956,120]
[393630058,1762867223013,-832.41,0.00039956,120]
[393630059,1762867223036,-832.41,0.00039956,120]
[393630060,1762867223061,-832.41,0.00039956,120]
[393630061,1762867223231,-832.41,0.00039956,120]
[393630062,1762867223259,-832.41,0.00039956,120]
[393630063,1762867223285,-832.41,0.00039956,120]
[393630064,1762867223311,-832.41,0.00039956,120]
[393630065,1762867223338,-832.41,0.00039956,120]
[393630066,1762867223365,-832.41,0.00039956,120]
[393630067,1762867223391,-832.41,0.00039956,120]
[393630068,1762867223416,-832.41,0.00039956,120]
[393630069,1762867223441,-832.41,0.00039956,120]
[393630070,1762867223469,-832.41,0.00039956,120]
[393630071,1762867223493,-832.41,0.00039956,120]
[393630072,1762867223518,-832.41,0.00039956,120]
[393630073,1762867223543,-832.41,0.00039956,120]
[393630074,1762867223567,-832.41,0.00039956,120]
[393630075,1762867223593,-832.56248208,0.00039956,120]
[393630076,1762867223623,-1000.0,0.00039956,50]
[393630077,1762867223648,-1000.0,0.00039956,50]
[393630078,1762867223673,-1000.0,0.00039956,50]
[393630079,1762867223698,-1000.0,0.00039956,50]
[393630080,1762867223725,-1000.0,0.00039956,50]
[393630081,1762867223751,-1000.0,0.00039956,50]
[393630082,1762867223777,-1000.0,0.00039956,50]
[393630083,1762867223812,-1000.0,0.00039956,50]
[393630084,1762867223839,-1000.0,0.00039956,50]
[393630085,1762867223866,-177.51,0.00039956,50]
[393630086,1762867223891,-2364.83,0.00039956,120]
[393630087,1762867223917,-2364.83,0.00039956,120]
[393630088,1762867223942,-2364.83,0.00039956,120]
[393630089,1762867223966,-2364.83,0.00039956,120]
[393630090,1762867223991,-2364.83,0.00039956,120]
[393630091,1762867224016,-2364.83,0.00039956,120]
[393630092,1762867224043,-2364.83,0.00039956,120]
[393630093,1762867224069,-2364.83,0.00039956,120]
[393630094,1762867224096,-2364.83,0.00039956,120]
[393630095,1762867224124,-2364.83,0.00039956,120]
[393630096,1762867224153,-2364.83,0.00039956,120]
[393630097,1762867224184,-2364.83,0.00039956,120]
[393630098,1762867224211,-2364.83,0.00039956,120]
[393630099,1762867224237,-2364.83,0.00039956,120]
[393630100,1762867224265,-2364.83,0.00039956,120]
[393630101,1762867224291,-2364.83,0.00039956,120]
[393630102,1762867224318,-2364.83,0.00039956,120]
[393630103,1762867224346,-2364.83,0.00039956,120]
[393630104,1762867224378,-2364.83,0.00039956,120]
[393630105,1762867224404,-2364.83,0.00039956,120]
[393630106,1762867224430,-2364.83,0.00039956,120]
[393630107,1762867224454,-2364.83,0.00039956,120]
[393630108,1762867224478,-2364.83,0.00039956,120]
[393630109,1762867224503,-2365.0699706,0.00039956,120]
[393630110,1762867224530,-500.0,0.00039956,120]
[393630111,1762867224554,-500.0,0.00039956,120]
[393630112,1762867224578,-500.0,0.00039956,120]
[393630113,1762867224603,-500.0,0.00039956,120]
[393630114,1762867224626,-500.0,0.00039956,120]
[393630115,1762867224650,-500.0,0.00039956,120]
[393630116,1762867224674,-500.0,0.00039956,120]
[393630117,1762867224698,-500.0,0.00039956,120]
[393630118,1762867224723,-500.0,0.00039956,120]
[393630119,1762867224748,-500.0,0.00039956,120]
[393630120,1762867224775,-637.3783078,0.00039956,120]
[393630121,1762867224801,-888.11,0.00039956,120]
[393630122,1762867224825,-4007.3,0.00039956,120]
[393630123,1762867224851,-4007.3,0.00039956,120]
[393630124,1762867224877,-4007.3,0.00039956,120]
[393630125,1762867224905,-4007.3,0.00039956,120]
[393630126,1762867224932,-4007.3,0.00039956,120]
[393630127,1762867224959,-4007.3,0.00039956,120]
[393630128,1762867224985,-4007.3,0.00039956,120]
[393630129,1762867225012,-4007.3,0.00039956,120]
[393630130,1762867225038,-4007.3,0.00039956,120]
[393630131,1762867225063,-4007.3,0.00039956,120]
[393630132,1762867225088,-4007.3,0.00039956,120]
[393630133,1762867225114,-4007.3,0.00039956,120]
[393630134,1762867225139,-4007.3,0.00039956,120]
[393630135,1762867225164,-4007.3,0.00039956,120]
[393630136,1762867225190,-4007.3,0.00039956,120]
[393630137,1762867225214,-4007.3,0.00039956,120]
[393630138,1762867225240,-4007.3,0.00039956,120]
[393630139,1762867225266,-4007.3,0.00039956,120]
[393630140,1762867225291,-4007.3,0.00039956,120]
[393630141,1762867225316,-4007.3,0.00039956,120]
[393630142,1762867225340,-4007.3,0.00039956,120]
[393630143,1762867225365,-4007.3,0.00039956,120]
[393630144,1762867225390,-4007.3,0.00039956,120]
[393630145,1762867225415,-4007.44184279,0.00039956,120]
[393630146,1762867225443,-452.32362992,0.00039956,30]
[393630147,1762867225471,-61566.90289878,0.00039956,120]
[393630148,1762867225496,-500.0,0.00039956,120]
[393630149,1762867225522,-400.0,0.00039956,120]
[393630150,1762867225547,-272.53336119,0.00039956,120]
[393630151,1762867225571,-1726.29,0.00039956,120]
[393630152,1762867225595,-1726.29,0.00039956,120]
[393630153,1762867225620,-1726.29,0.00039956,120]
[393630154,1762867225644,-1726.29,0.00039956,120]
[393630155,1762867225668,-1726.29,0.00039956,120]
[393630156,1762867225692,-1726.29,0.00039956,120]
[393630157,1762867225843,-1726.29,0.00039956,120]
[393630158,1762867225870,-1726.29,0.00039956,120]
[393630159,1762867225896,-1726.29,0.00039956,120]
[393630160,1762867225922,-1726.29,0.00039956,120]
[393630161,1762867225947,-1726.29,0.00039956,120]
[393630162,1762867225971,-1726.29,0.00039956,120]
[393630163,1762867225996,-1726.29,0.00039956,120]
[393630164,1762867226022,-1726.29,0.00039956,120]
[393630165,1762867226047,-1726.29,0.00039956,120]
[393630166,1762867226072,-1726.29,0.00039956,120]
[393630167,1762867226097,-1726.29,0.00039956,120]
[393630168,1762867226122,-1726.29,0.00039956,120]
[393630169,1762867226147,-1726.29,0.00039956,120]
[393630170,1762867226175,-1726.29,0.00039956,120]
[393630171,1762867226205,-1726.29,0.00039956,120]
[393630172,1762867226232,-1726.29,0.00039956,120]
[393630173,1762867226257,-1726.29,0.00039956,120]
[393630174,1762867226284,-1726.44987881,0.00039956,120]
[393630175,1762867226310,-928023.1,0.00039956,90]
[393630176,1762867226335,-9170.6873811,0.00039956,120]
[393630177,1762867226361,-265575.55912126,0.00039956,30]
[393630178,1762867226387,-20300.13342574,0.00039956,120]
[393630179,1762867226412,-58273.84189963,0.00039956,120]
[393630180,1762867226438,-16934.69214197,0.00039956,120]
[393630181,1762867226463,-1000.0,0.00039956,50]
[393630182,1762867226488,-1000.0,0.00039956,50]
[393630183,1762867226515,-153.23296416,0.00039956,30]
[393630184,1762867226540,-232.18,0.00039956,120]
[393630185,1762867226565,-389.27,0.00039956,60]
[393630186,1762867226590,-500.0,0.00039956,120]
[393630187,1762867226615,-500.0,0.00039956,120]
[393630188,1762867226640,-500.0,0.00039956,120]
[393630189,1762867226666,-500.0,0.00039956,120]
[393630190,1762867226693,-500.0,0.00039956,120]
[393630191,1762867226718,-500.0,0.00039956,120]
[393630192,1762867226744,-500.0,0.00039956,120]
[393630193,1762867226771,-500.0,0.00039956,120]
[393630194,1762867226797,-500.0,0.00039956,120]
[393630195,1762867226824,-500.0,0.00039956,120]
[393630196,1762867226851,-585.72494628,0.00039956,120]
[393630197,1762867226876,-516.30731194,0.00039956,120]
[393630198,1762867226901,-200.0,0.00039956,30]
[393630199,1762867226927,-151.0,0.00039956,120]
[393630200,1762867226954,-151.0,0.00039956,120]
[393630201,1762867226982,-151.0,0.00039956,120]
[393630202,1762867227009,-151.0,0.00039956,120]
[393630203,1762867227034,-151.0,0.00039956,120]
[393630204,1762867227059,-151.0,0.00039956,120]
[393630205,1762867227084,-151.0,0.00039956,120]
[393630206,1762867227109,-151.0,0.00039956,120]
[393630207,1762867227134,-151.0,0.00039956,120]
[393630208,1762867227159,-151.0,0.00039956,120]
[393630209,1762867227186,-151.0,0.00039956,120]
[393630210,1762867227211,-151.0,0.00039956,120]
[393630211,1762867227236,-151.0,0.00039956,120]
[393630212,1762867227264,-151.0,0.00039956,120]
[393630213,1762867227289,-151.0,0.00039956,120]
[393630214,1762867227314,-151.0,0.00039956,120]
[393630215,1762867227339,-151.0,0.00039956,120]
[393630216,1762867227364,-151.0,0.00039956,120]
[393630217,1762867227389,-151.0,0.00039956,120]
[393630218,1762867227414,-151.0,0.00039956,120]
[393630219,1762867227439,-151.0,0.00039956,120]
[393630220,1762867227466,-151.0,0.00039956,120]
[393630221,1762867227491,-151.0,0.00039956,120]
[393630222,1762867227517,-151.0,0.00039956,120]
[393630223,1762867227542,-151.0,0.00039956,120]
[393630224,1762867227568,-151.0,0.00039956,120]
[393630225,1762867227595,-151.0,0.00039956,120]
[393630226,1762867227620,-151.0,0.00039956,120]
[393630243,1762867261699,200.0,0.00039956,30]
[393630268,1762867325068,151.0,0.00039956,120]
[393630269,1762867325691,151.0,0.00039956,120]
[393630270,1762867326390,151.0,0.00039956,120]
[393630271,1762867327025,151.0,0.00039956,120]
[393630272,1762867327829,151.0,0.00039956,120]
[393630273,1762867328457,151.0,0.00039956,120]
[393630274,1762867329094,151.0,0.00039956,120]
[393630275,1762867329695,151.0,0.00039956,120]
[393630276,1762867329834,151.0,0.00039956,120]
[393630277,1762867330348,151.0,0.00039956,120]
[393630278,1762867330478,151.0,0.00039956,120]
[393630279,1762867331119,151.0,0.00039956,120]
[393630280,1762867331186,151.0,0.00039956,120]
[393630281,1762867331763,151.0,0.00039956,120]
[393630282,1762867331825,151.0,0.00039956,120]
[393630283,1762867332463,151.0,0.00039956,120]
[393630284,1762867332494,151.0,0.00039956,120]
[393630285,1762867333077,151.0,0.00039956,120]
[393630286,1762867333560,151.0,0.00039956,120]
[393630287,1762867333688,151.0,0.00039956,120]
[393630288,1762867334242,151.0,0.00039956,120]
[393630289,1762867334315,151.0,0.00039956,120]
[393630290,1762867335033,151.0,0.00039956,120]
[393630291,1762867335621,151.0,0.00039956,120]
[393630292,1762867336259,151.0,0.00039956,120]
[393630293,1762867336902,151.0,0.00039956,120]